bitfinex/quotes_ETHUSD_20240618
["timestamp","ask_amount","ask_price","bid_price","bid_amount"]
[1718715988931,0.60943663,3392.2,3390.7,4.858]
[1718715989141,0.60943663,3392.2,3390.9,4.858]
[1718715989420,0.60943663,3392.8,3391.1,3.094]
[1718715989623,0.60943663,3392.8,3391.2,3.88569554]
[1718715989796,0.60943663,3393.1,3391.4,2.4418]
[1718715989993,2.90623663,3393.2,3391.5,0.60894903]
[1718715990181,0.91415495,3393.4,3391.5,0.60894903]
[1718715990182,0.60943663,3393.4,3391.7,3.094]
[1718715990380,0.90353663,3393.5,3391.8,3.7029414]
[1718715990584,0.56724066,3393.5,3391.9,3.54669414]
[1718715990905,0.56724066,3393.5,3392.0,0.60894139]
[1718715991115,0.2941,3393.5,3392.0,0.60894139]
[1718715992333,3.02313663,3393.9,3392.0,0.55]
[1718715992334,0.2941,3393.8,3392.0,0.55]
[1718715992615,0.90353663,3393.5,3392.1,0.05894616]
[1718715992834,0.2941,3393.5,3392.1,0.05894616]
[1718715993713,0.2941,3393.6,3392.0,0.05893869]
[1718715993901,0.2941,3393.6,3392.1,5.408]
[1718715994217,0.2941,3393.6,3392.3,2.4946]
[1718715994522,1.21887327,3394.8,3392.2,7.9169332]
[1718715994523,1.0,3395.0,3393.0,8.431]
[1718715994681,1.0,3395.0,3393.2,3.094]
[1718715995124,1.0,3395.0,3393.3,3.60891612]
[1718715995290,0.33864,3394.9,3393.4,1.38015161]
[1718715995493,0.33864,3394.9,3393.5,0.60891613]
[1718715995685,0.33864,3394.9,3393.5,0.55]
[1718715995882,0.33864,3394.9,3393.1,2.3346]
[1718715996088,0.33864,3394.9,3393.2,0.05892507]
[1718715996399,0.33864,3394.9,3393.2,0.23346]
[1718715997128,0.33864,3394.9,3393.3,0.05891665]
[1718715997332,0.33864,3394.9,3393.4,0.55]
[1718715997624,0.33864,3394.9,3393.3,0.55]
[1718715997823,0.33864,3394.9,3393.3,1.416446]
[1718715998888,0.33864,3394.9,3392.4,6.0365]
[1718715999117,2.3252,3394.8,3392.4,2.4635]
[1718715999622,3.094,3394.7,3391.9,9.194]
[1718715999819,0.84192,3394.6,3392.0,1.51223]
[1718716000038,3.0,3394.7,3392.0,1.51223]
[1718716000325,2.3316,3394.7,3392.0,1.51223]
[1718716000527,3.06983663,3394.5,3392.0,1.51223]
[1718716000694,5.5544,3394.3,3391.4,4.134]
[1718716000897,2.4604,3394.0,3391.2,5.8803]
[1718716001110,1.22582029,3393.9,3391.3,0.58803]
[1718716001419,0.60943663,3393.8,3391.3,0.58803]
[1718716001594,4.22582029,3393.9,3391.3,0.58803]
[1718716001805,4.22582029,3393.9,3390.5,2.94936]
[1718716001806,2.2848,3393.3,3390.4,2.3998]
[1718716002002,3.094,3393.2,3390.4,2.3998]
[1718716002693,3.094,3393.0,3390.4,2.3998]
[1718716002893,3.094,3393.0,3390.5,0.54938]
[1718716003092,3.094,3393.0,3390.5,3.54938]
[1718716003093,3.0,3392.9,3390.5,3.54938]
[1718716003328,3.0,3392.9,3390.5,0.54938]
[1718716003739,2.2996,3392.8,3390.4,2.3998]
[1718716004409,2.2996,3392.8,3390.0,5.337]
[1718716004766,5.2996,3392.8,3390.1,3.094]
[1718716004906,0.99171916,3392.7,3390.2,1.3931]
[1718716005104,3.99171916,3392.7,3390.2,1.3931]
[1718716005305,4.60115579,3392.7,3390.2,1.3931]
[1718716005724,3.99171916,3392.7,3390.2,1.3931]
[1718716005923,3.99171916,3392.7,3390.3,0.98241]
[1718716005924,0.99947558,3392.6,3390.3,0.98241]
[1718716006129,2.2539,3392.5,3390.3,0.98241]
[1718716006352,3.70343663,3392.3,3389.9,3.0]
[1718716006647,3.0,3392.2,3389.8,2.4714]
[1718716006794,3.68714916,3392.2,3389.9,0.24714]
[1718716007106,0.60943663,3392.1,3390.0,0.05898024]
[1718716007310,0.83047407,3392.0,3390.1,0.27775202]
[1718716007501,0.83047407,3392.0,3390.2,0.05898023]
[1718716007901,0.68714916,3392.2,3390.2,0.05898023]
[1718716008162,3.16805495,3392.5,3390.2,0.05898023]
[1718716008163,0.60943663,3392.3,3390.3,0.55]
[1718716008342,0.60943663,3392.4,3390.4,0.05897083]
[1718716008498,1.14807701,3392.4,3390.5,0.55]
[1718716008703,2.86333663,3392.5,3390.6,0.05896808]
[1718716008939,2.2539,3392.5,3390.7,0.55]
[1718716009144,2.2539,3392.5,3390.8,0.78425756]
[1718716009475,2.2539,3392.5,3390.9,0.55]
[1718716009672,2.2539,3392.5,3391.0,0.05896213]
[1718716009818,2.2539,3392.5,3391.1,0.55]
[1718716010018,2.2539,3392.5,3391.2,0.05896213]
[1718716010337,0.60943663,3392.9,3391.3,0.05896213]
[1718716010669,0.91415495,3393.0,3391.3,0.05896213]
[1718716010670,0.60943663,3393.0,3391.4,0.55]
[1718716010864,1.06064945,3392.9,3391.0,3.0]
[1718716011019,0.60943663,3392.8,3391.1,0.55]
[1718716011352,0.60943663,3392.5,3390.9,0.55]
[1718716011716,0.60943663,3392.5,3391.0,0.058963]
[1718716011917,0.60943663,3392.4,3391.1,0.55]
[1718716012143,0.60943663,3392.4,3391.2,0.05896301]
[1718716012144,0.45235916,3392.4,3391.2,0.05896301]
[1718716012320,0.45235916,3392.4,3391.3,0.05896301]
[1718716013117,0.60943663,3392.7,3391.3,0.05896301]
[1718716013431,0.60943663,3392.9,3391.4,0.55]
[1718716013755,0.60943663,3393.0,3391.5,0.41984889]
[1718716013952,0.60943663,3393.0,3391.6,0.55]
[1718716014157,0.60943663,3393.0,3391.7,0.21093748]
[1718716014158,0.51215649,3393.0,3391.7,0.21093748]
[1718716014322,0.51215649,3393.0,3391.8,0.05895259]
[1718716014520,0.60943663,3393.2,3391.8,0.05895259]
[1718716015055,0.60943663,3393.2,3391.9,0.55]
[1718716015218,0.60943663,3393.2,3392.0,0.05893934]
[1718716015414,0.60943663,3393.2,3392.3,5.3577]
[1718716015649,0.91415495,3393.7,3392.4,3.0]
[1718716015849,2.3659,3394.4,3392.4,3.0]
[1718716015850,2.97533663,3394.4,3392.5,0.55]
[1718716016034,0.96791396,3394.3,3392.6,0.89077]
[1718716016228,0.96791396,3394.3,3392.7,0.55]
[1718716016417,0.96791396,3394.3,3392.6,0.89077]
[1718716016621,0.96791396,3394.3,3390.0,1.52882705]
[1718716016622,0.60943663,3394.0,3391.9,3.573]
[1718716016821,0.60943663,3394.0,3392.0,3.0]
[1718716016822,0.60943663,3393.9,3392.0,3.0]
[1718716017043,0.60943663,3393.7,3392.1,0.53031]
[1718716017243,0.60943663,3393.7,3391.9,3.0]
[1718716017447,0.60943663,3393.7,3392.0,0.55]
[1718716017659,0.15235916,3393.6,3392.1,0.28531]
[1718716018244,0.60943663,3393.5,3392.1,0.28531]
[1718716018486,0.76179579,3393.6,3392.2,0.60894652]
[1718716018680,0.60943663,3393.7,3392.2,0.55]
[1718716018884,0.91415495,3393.9,3392.2,0.55]
[1718716018885,0.60943663,3393.6,3392.2,0.55]
[1718716019183,0.60943663,3393.4,3392.1,0.28531]
[1718716019391,0.60943663,3393.4,3392.2,0.05894601]
[1718716019562,0.60943663,3393.7,3392.2,0.55]
[1718716019885,1.42745777,3393.8,3392.3,0.05893974]
[1718716019886,0.60943663,3393.8,3392.3,0.05893974]
[1718716020046,0.60943663,3394.0,3392.4,0.55]
[1718716020245,0.60943663,3394.0,3392.2,0.55]
[1718716020246,0.60943663,3393.9,3392.2,0.55]
[1718716020442,0.60943663,3393.7,3392.1,0.28531]
[1718716020691,0.60943663,3394.3,3392.8,3.573]
[1718716020846,0.60943663,3394.9,3393.4,6.667]
[1718716021045,1.52359158,3395.2,3393.5,3.05891264]
[1718716021251,1.52359158,3395.2,3393.5,3.72561264]
[1718716021487,1.21887327,3395.6,3393.5,3.72561264]
[1718716021488,0.60943663,3395.3,3393.5,3.72561264]
[1718716021777,0.60943663,3395.4,3393.6,0.55]
[1718716021994,0.60943663,3395.4,3393.7,0.05891264]
[1718716022189,0.60943663,3395.4,3393.8,0.60891264]
[1718716022361,0.60943663,3395.5,3393.8,0.05891264]
[1718716022563,0.60943663,3395.5,3393.9,0.55]
[1718716022753,0.60943663,3395.4,3394.0,0.05891264]
[1718716022958,0.60943663,3395.6,3394.1,0.55]
[1718716023185,0.60943663,3395.6,3394.2,0.05891263]
[1718716023385,3.07133663,3395.7,3394.3,0.60891263]
[1718716023678,0.60943663,3395.5,3394.1,0.55]
[1718716023881,0.60943663,3395.6,3394.4,0.05891263]
[1718716024258,2.4619,3395.7,3394.4,0.05891263]
[1718716024259,2.4619,3395.7,3394.5,0.55]
[1718716024486,0.60943663,3396.0,3394.6,0.05890807]
[1718716024819,3.91415495,3396.2,3394.6,0.05890807]
[1718716024820,0.60943663,3396.1,3394.7,0.55]
[1718716025220,3.60943663,3396.2,3394.1,3.0]
[1718716025532,3.60943663,3396.2,3394.2,1.07618]
[1718716025533,0.60943663,3395.9,3394.2,1.07618]
[1718716025672,0.60943663,3395.7,3393.7,1.08837]
[1718716025871,0.60943663,3395.7,3393.5,8.0967]
[1718716025872,2.4411,3395.3,3393.5,0.6667]
[1718716026077,4.106,3395.0,3393.0,7.43]
[1718716026277,4.106,3395.0,3393.1,0.05893525]
[1718716026278,0.91415495,3394.6,3393.1,0.05893525]
[1718716026594,2.3769,3394.7,3392.2,0.2954]
[1718716026909,0.60943663,3394.1,3391.5,0.29419109]
[1718716027119,0.60943663,3393.9,3391.1,3.573]
[1718716027275,0.60943663,3393.9,3391.2,4.878]
[1718716027679,0.60943663,3393.8,3391.2,4.878]
[1718716027921,0.60943663,3393.4,3391.3,1.10445704]
[1718716028268,0.60943663,3393.4,3391.1,3.86337043]
[1718716028269,0.60943663,3393.4,3391.1,3.573]
[1718716028384,0.60943663,3393.2,3391.1,3.573]
[1718716028580,0.60943663,3393.3,3391.2,1.07542]
[1718716028785,0.60943663,3393.2,3391.2,1.07542]
[1718716028981,0.60943663,3393.1,3391.2,1.07542]
[1718716029211,0.91415495,3393.3,3391.3,1.005762]
[1718716029212,0.60943663,3393.0,3391.3,1.005762]
[1718716029416,1.42745777,3393.2,3391.0,2.3032]
[1718716029417,0.91415495,3392.7,3391.4,0.05896256]
[1718716029593,0.91415495,3392.7,3391.1,0.28928259]
[1718716029594,0.60943663,3392.7,3391.1,0.28928259]
[1718716029797,0.60943663,3392.8,3391.2,0.25924826]
[1718716029981,0.60943663,3392.7,3391.2,0.25924826]
[1718716030386,0.60943663,3392.7,3391.3,0.05896038]
[1718716030581,0.60943663,3392.7,3391.2,0.25924826]
[1718716030786,0.60943663,3392.6,3391.2,0.25924826]
[1718716031093,1.20573443,3392.7,3391.3,0.05896315]
[1718716031297,0.60943663,3392.7,3391.3,0.05896315]
[1718716031493,0.60943663,3392.8,3391.4,0.33182114]
[1718716031695,0.60943663,3392.7,3391.4,0.33182114]
[1718716031899,1.00085213,3392.8,3391.4,0.33182114]
[1718716032197,0.60943663,3392.5,3391.2,0.25924826]
[1718716032419,0.60943663,3392.5,3390.7,10.43]
[1718716032420,0.60943663,3392.3,3390.7,10.43]
[1718716032586,0.88368312,3392.3,3390.8,1.10197099]
[1718716032787,0.60943663,3392.2,3390.5,3.0]
[1718716032983,0.88368312,3392.3,3390.4,2.3556]
[1718716033280,0.60943663,3392.2,3390.5,0.26450615]
[1718716033484,0.60943663,3392.3,3390.6,0.05897099]
[1718716033685,0.60943663,3392.4,3390.7,0.56790771]
[1718716033932,0.60943663,3392.5,3390.8,0.05896612]
[1718716034132,1.21887327,3392.8,3390.8,0.05896612]
[1718716034133,0.60943663,3392.6,3390.9,0.90778738]
[1718716034345,0.60943663,3392.6,3391.0,0.55]
[1718716034783,0.60943663,3392.7,3391.1,0.05896008]
[1718716035092,3.60943663,3392.9,3391.2,0.70167475]
[1718716035285,0.60943663,3392.9,3391.3,0.05896004]
[1718716035523,0.60943663,3393.2,3391.5,2.2509]
[1718716035709,0.60943663,3393.2,3391.6,0.34494151]
[1718716036224,0.60943663,3393.1,3391.6,3.34494151]
[1718716036393,0.60943663,3393.2,3391.7,0.61458415]
[1718716036594,0.60943663,3393.2,3391.8,0.05895549]
[1718716037025,3.60943663,3393.4,3391.8,0.05895549]
[1718716037329,1.29211579,3393.3,3391.9,0.39595256]
[1718716037517,0.60943663,3393.3,3392.0,0.058951]
[1718716037843,0.60943663,3393.3,3391.9,0.39595256]
[1718716037993,0.60943663,3392.9,3391.2,3.0]
[1718716038192,0.60943663,3392.6,3390.9,2.2847]
[1718716038409,0.60943663,3392.6,3390.7,3.0]
[1718716038410,0.60943663,3392.3,3391.0,0.52847]
[1718716038620,0.60943663,3392.3,3390.6,3.0]
[1718716038839,2.99453663,3392.4,3390.6,3.0]
[1718716039036,0.93936213,3392.3,3390.7,1.043]
[1718716039244,0.3299255,3392.3,3390.7,1.043]
[1718716039750,0.60943663,3392.0,3390.7,1.043]
[1718716040045,0.60943663,3392.0,3390.8,0.05897483]
[1718716040349,0.60943663,3392.1,3390.7,1.043]
[1718716040650,0.60943663,3392.2,3390.8,0.8473]
[1718716041007,0.60943663,3392.2,3390.9,0.05896858]
[1718716041208,2.3851,3392.4,3390.9,0.05896858]
[1718716041209,0.60943663,3392.4,3390.9,0.05896858]
[1718716041454,0.60943663,3392.9,3391.1,5.9435]
[1718716041748,0.60943663,3393.2,3391.5,1.772]
[1718716041972,0.60943663,3393.6,3391.9,2.3343]
[1718716042112,0.60943663,3393.7,3392.0,5.48694039]
[1718716042316,0.60943663,3393.9,3392.1,7.18812404]
[1718716042556,0.91415495,3394.1,3392.2,0.60893483]
[1718716042557,0.60943663,3394.1,3392.2,0.60893483]
[1718716042845,0.60943663,3394.0,3392.3,1.01584072]
[1718716043049,0.32560549,3394.1,3392.4,0.55]
[1718716043208,0.93504212,3394.1,3392.5,0.05893484]
[1718716043427,0.93504212,3394.1,3392.6,0.70658407]
[1718716043428,0.32560549,3394.1,3392.6,0.70658407]
[1718716043649,0.93504212,3394.1,3392.7,0.05893488]
[1718716043992,1.52485477,3394.5,3392.9,2.2577]
[1718716043993,0.60943663,3394.5,3392.9,2.2577]
[1718716044137,0.60943663,3394.5,3393.0,0.60892649]
[1718716044493,1.21887327,3394.8,3393.0,0.60892649]
[1718716044494,0.60943663,3394.8,3393.1,0.64166265]
[1718716044642,0.60943663,3394.8,3393.2,0.55]
[1718716044830,1.91415495,3395.0,3393.2,0.55]
[1718716044831,0.60943663,3394.9,3393.3,0.05892163]
[1718716045036,0.60943663,3394.6,3393.4,0.55]
[1718716045267,0.60943663,3394.6,3393.5,0.05892807]
[1718716045439,0.60943663,3394.8,3393.3,0.47416627]
[1718716045639,0.60943663,3394.5,3393.0,3.0]
[1718716045829,0.60943663,3394.3,3392.9,2.2577]
[1718716046282,0.60943663,3394.3,3392.5,3.0]
[1718716046444,0.60943663,3394.3,3392.3,2.2557]
[1718716046445,0.60943663,3394.0,3392.3,2.2557]
[1718716046639,0.88368312,3394.0,3392.3,2.2557]
[1718716046845,0.60943663,3393.7,3392.3,2.2557]
[1718716047072,0.60943663,3393.7,3392.2,3.0]
[1718716047073,0.60943663,3393.6,3392.2,3.0]
[1718716047245,0.60943663,3393.7,3392.0,2.3342]
[1718716047449,0.60943663,3393.7,3392.3,0.05894444]
[1718716047646,0.60943663,3393.8,3392.3,0.05894444]
[1718716047929,0.39509916,3393.7,3392.3,0.62160088]
[1718716048130,1.00453579,3393.7,3392.3,0.56265644]
[1718716048389,0.60943663,3393.5,3392.1,0.23342]
[1718716048737,0.60943663,3393.4,3392.1,0.23342]
[1718716049038,0.60943663,3392.8,3391.7,7.43]
[1718716049285,1.90509074,3392.7,3391.0,7.43]
[1718716049577,0.60943663,3392.6,3391.1,0.05896651]
[1718716049789,0.60943663,3392.7,3390.9,3.106]
[1718716049952,0.60943663,3392.9,3390.9,4.02037]
[1718716050274,0.60943663,3393.1,3391.1,3.106]
[1718716050474,0.60943663,3393.3,3391.2,0.05895155]
[1718716050632,0.60943663,3393.3,3391.3,0.05895155]
[1718716051054,0.60943663,3393.2,3391.4,0.55]
[1718716051403,0.60943663,3393.2,3391.5,0.2187662]
[1718716051606,0.60943663,3393.2,3391.6,0.55]
[1718716051802,0.60943663,3393.2,3391.7,2.4407516]
[1718716052093,0.60943663,3393.2,3391.8,0.60895161]
[1718716052298,0.6335555,3393.3,3391.9,0.36392193]
[1718716052299,0.60943663,3393.3,3391.9,0.36392193]
[1718716052516,0.60943663,3393.5,3392.0,0.55]
[1718716052819,0.60943663,3393.5,3392.1,0.50533423]
[1718716052959,3.91415495,3393.7,3392.2,0.55]
[1718716052960,0.60943663,3393.6,3392.2,0.55]
[1718716053162,0.60943663,3393.5,3392.2,0.55]
[1718716053408,0.60943663,3393.4,3392.2,0.55]
[1718716053823,0.60943663,3393.3,3392.2,0.55]
[1718716054185,0.60943663,3393.4,3392.3,0.05894932]
[1718716054390,0.60943663,3393.4,3392.3,0.05894771]
[1718716054655,0.60943663,3393.4,3392.4,0.55]
[1718716054933,0.60943663,3393.6,3392.5,0.05894205]
[1718716055134,0.60943663,3393.6,3392.6,0.55]
[1718716055283,0.60943663,3393.6,3392.7,0.05894116]
[1718716055484,0.60943663,3394.0,3392.8,2.88393181]
[1718716055695,0.91415495,3394.2,3392.8,2.88393181]
[1718716055696,0.60943663,3394.2,3392.9,3.28839318]
[1718716055926,0.60943663,3394.3,3393.0,0.60892995]
[1718716056087,0.60943663,3394.3,3393.1,0.67223231]
[1718716056286,0.60943663,3394.3,3393.2,0.60892951]
[1718716056528,0.91415495,3394.4,3393.2,0.60892951]
[1718716056529,0.60943663,3394.2,3393.3,0.05893122]
[1718716056727,0.60943663,3394.3,3393.3,0.05893122]
[1718716056895,0.88368312,3394.3,3392.9,3.28839318]
[1718716057106,0.60943663,3394.0,3393.0,0.55]
[1718716057287,0.60943663,3394.1,3393.1,0.05893633]
[1718716057489,0.60943663,3394.0,3393.0,0.55]
[1718716057797,0.60943663,3393.8,3392.2,2.4168]
[1718716057994,0.60943663,3393.8,3392.3,0.55]
[1718716057995,0.60943663,3393.6,3392.3,0.55]
[1718716058216,0.60943663,3393.5,3392.4,0.34131922]
[1718716058445,0.60943663,3393.5,3392.5,0.55]
[1718716059759,0.91415495,3393.6,3392.5,0.55]
[1718716059760,0.60943663,3393.4,3392.5,0.55]
[1718716059926,0.60943663,3393.2,3392.5,0.55]
[1718716060135,0.60943663,3393.2,3392.3,0.55]
[1718716060454,0.91415495,3393.3,3392.2,2.4168]
[1718716060455,0.60943663,3393.1,3392.2,2.4168]
[1718716060636,0.60943663,3393.1,3391.7,3.0]
[1718716060637,0.88368312,3393.1,3391.7,3.0]
[1718716060952,0.60943663,3392.7,3391.6,7.43]
[1718716061526,0.60943663,3392.6,3391.6,7.43]
[1718716061852,0.60943663,3392.7,3391.7,2.184]
[1718716062053,0.60943663,3392.8,3391.7,2.184]
[1718716062256,0.60943663,3392.5,3391.6,7.43]
[1718716062428,0.60943663,3392.4,3391.6,7.43]
[1718716062633,0.60943663,3392.4,3391.0,9.8353]
[1718716063043,0.60943663,3392.4,3391.0,2.4053]
[1718716063241,0.91415495,3392.6,3391.1,0.24053]
[1718716063242,0.60943663,3392.3,3391.1,0.24053]
[1718716063718,0.60943663,3392.2,3391.1,0.24053]
[1718716063932,0.60943663,3392.1,3391.1,0.24053]
[1718716064157,0.60943663,3392.0,3391.2,0.264583]
[1718716064452,0.60943663,3392.2,3391.2,0.264583]
[1718716064961,1.52359158,3392.1,3391.1,3.0]
[1718716065120,0.60943663,3391.8,3390.5,3.0]
[1718716065325,0.60943663,3391.9,3390.5,3.0]
[1718716065539,0.60943663,3391.8,3390.4,2.3249]
[1718716065720,0.91415495,3391.9,3390.4,2.3249]
[1718716065721,0.60943663,3391.7,3390.4,2.3249]
[1718716066563,0.60943663,3391.5,3390.4,2.3249]
[1718716066780,0.15235916,3391.4,3390.4,2.3249]
[1718716066925,0.15235916,3391.4,3389.9,7.43]
[1718716066926,0.60943663,3391.2,3389.9,7.43]
[1718716067136,1.06651411,3391.4,3389.3,3.573]
[1718716067137,0.60943663,3391.0,3389.4,1.181756]
[1718716067326,0.60943663,3390.7,3389.5,1.6874756]
[1718716067661,0.60943663,3390.9,3389.2,2.64367232]
[1718716067971,0.60943663,3390.9,3389.3,1.44624923]
[1718716068176,0.60943663,3390.9,3389.3,1.50524178]
[1718716068463,0.60943663,3390.8,3389.3,1.50524178]
[1718716068818,0.60943663,3390.8,3389.3,3.26436723]
[1718716069023,0.60943663,3390.6,3389.4,0.56212672]
[1718716069254,0.60943663,3390.5,3389.3,0.26436723]
[1718716069763,0.60943663,3390.4,3389.4,0.05899903]
[1718716069923,0.60943663,3390.4,3389.3,0.26436723]
[1718716070257,0.91415495,3390.6,3389.4,0.05899716]
[1718716070258,0.60943663,3390.6,3389.4,0.05899716]
[1718716070422,0.60943663,3390.7,3389.4,0.05899716]
[1718716070624,0.60943663,3390.8,3389.4,0.05899716]
[1718716070828,3.60943663,3390.9,3389.4,0.05899716]
[1718716071042,0.60943663,3390.9,3389.3,0.26436723]
[1718716071350,0.60943663,3390.8,3389.4,0.60899133]
[1718716071556,0.60943663,3390.9,3389.4,0.60899133]
[1718716071754,0.60943663,3391.0,3389.4,0.60899133]
[1718716072068,0.60943663,3391.2,3389.5,5.90648781]
[1718716072228,0.60943663,3391.5,3389.6,7.3280855]
[1718716072425,1.8283099,3391.8,3389.7,0.0589778]
[1718716072629,0.60943663,3391.8,3389.8,2.10963409]
[1718716072887,0.60943663,3391.7,3389.9,4.878]
[1718716073162,0.60943663,3391.9,3390.0,9.77323476]
[1718716073363,0.60943663,3391.8,3390.0,9.77323476]
[1718716073568,1.21887327,3392.1,3390.1,1.30458911]
[1718716073569,0.60943663,3391.9,3390.1,1.30458911]
[1718716073859,0.60943663,3391.9,3390.2,0.60897135]
[1718716074074,0.60943663,3391.9,3390.3,0.05897135]
[1718716074378,0.60943663,3392.2,3390.4,1.40925605]
[1718716074545,0.60943663,3392.0,3390.4,1.40925605]
[1718716074863,0.60943663,3392.0,3390.5,0.05897138]
[1718716075165,0.60943663,3392.1,3390.6,0.55]
[1718716075333,0.60943663,3392.1,3390.7,0.05896666]
[1718716075530,0.60943663,3392.1,3390.8,0.55]
[1718716075531,0.60943663,3392.0,3390.8,0.55]
[1718716075736,0.60943663,3391.9,3390.8,0.55]
[1718716075952,0.60943663,3391.9,3389.8,6.679]
[1718716075953,0.60943663,3391.8,3390.5,0.55]
[1718716076263,0.60943663,3391.8,3390.2,0.55]
[1718716076426,0.60943663,3391.9,3390.6,0.05897678]
[1718716076627,0.60943663,3391.9,3390.7,0.55]
[1718716076932,0.60943663,3391.3,3390.1,3.0]
[1718716077173,0.60943663,3391.4,3390.1,3.0]
[1718716077360,0.60943663,3391.1,3389.5,10.43]
[1718716077528,0.60943663,3391.1,3389.6,1.27738]
[1718716077733,0.60943663,3391.2,3389.7,0.0589886]
[1718716077958,0.60943663,3391.2,3389.8,0.87663686]
[1718716078262,0.60943663,3391.2,3389.8,3.98263686]
[1718716078469,0.60943663,3391.8,3390.0,3.106]
[1718716078631,1.21887327,3392.2,3390.2,4.878]
[1718716078632,0.60943663,3392.1,3390.2,4.878]
[1718716078966,3.67007327,3392.4,3390.2,4.878]
[1718716078967,0.60943663,3392.3,3390.4,2.486]
[1718716079163,0.60943663,3392.4,3390.5,1.35126337]
[1718716079366,0.60943663,3392.4,3390.5,1.29229668]
[1718716079591,0.60943663,3392.4,3390.6,0.79409618]
[1718716079867,0.60943663,3392.4,3390.7,0.55]
[1718716080068,0.60943663,3392.4,3390.8,0.05896653]
[1718716080232,0.60943663,3392.4,3390.9,0.55]
[1718716080430,0.60943663,3392.4,3391.0,0.05896353]
[1718716080655,0.60943663,3392.4,3391.1,0.55]
[1718716080973,0.60943663,3392.5,3391.2,0.0589634]
[1718716081173,0.60943663,3392.5,3391.3,0.55]
[1718716081470,0.60943663,3392.5,3391.4,0.05896192]
[1718716081682,3.60943663,3392.8,3391.5,0.55]
[1718716081840,1.14329107,3392.8,3391.6,0.05896075]
[1718716082039,0.60943663,3392.8,3391.7,0.55]
[1718716082295,0.60943663,3393.1,3391.8,2.89995444]
[1718716082438,0.60943663,3393.3,3391.9,0.55]
[1718716082638,0.91415495,3393.5,3391.9,0.55]
[1718716082639,1.02162452,3393.4,3392.0,0.40394335]
[1718716082870,0.41218789,3393.4,3392.1,0.55]
[1718716083070,0.60943663,3393.3,3392.1,0.55]
[1718716083461,0.60943663,3393.1,3391.5,0.34499619]
[1718716083684,0.60943663,3393.1,3390.9,3.0]
[1718716083685,0.60943663,3392.6,3390.9,3.0]
[1718716083840,0.60943663,3392.6,3390.8,2.2988]
[1718716084045,0.60943663,3392.5,3390.8,2.2988]
[1718716084276,0.60943663,3392.0,3390.8,2.2988]
[1718716084476,0.60943663,3391.9,3390.6,8.16512967]
[1718716084694,0.60943663,3391.7,3390.6,8.16512967]
[1718716084975,0.60943663,3391.6,3390.6,8.16512967]
[1718716085187,0.60943663,3391.8,3390.6,8.16512967]
[1718716085483,0.60943663,3391.8,3390.7,0.05897682]
[1718716085659,0.60943663,3391.9,3390.7,0.05897682]
[1718716085856,0.60943663,3391.8,3390.6,8.16512967]
[1718716086065,0.60943663,3391.9,3390.7,1.42548491]
[1718716086259,0.60943663,3392.3,3390.9,2.4196]
[1718716086466,1.52615336,3392.7,3391.0,1.24510775]
[1718716086467,0.60943663,3392.7,3391.0,1.24510775]
[1718716086789,0.60943663,3392.5,3391.1,0.05895627]
[1718716086950,0.60943663,3392.5,3391.2,0.55]
[1718716087152,0.60943663,3392.6,3391.3,0.05896082]
[1718716087383,0.60943663,3393.2,3391.5,5.9996]
[1718716087586,0.60943663,3393.4,3391.6,3.97145608]
[1718716087890,0.60943663,3393.5,3391.7,0.60894566]
[1718716088093,0.21330282,3393.4,3391.7,1.60605127]
[1718716088262,0.60943663,3393.5,3391.9,5.4977]
[1718716088505,0.60943663,3393.7,3392.0,3.60893669]
[1718716088812,1.0,3394.0,3392.1,4.18006367]
[1718716088813,1.60943663,3394.0,3392.1,4.18006367]
[1718716089112,1.0,3394.0,3392.2,10.89193076]
[1718716089330,1.16094366,3394.0,3392.3,1.50719944]
[1718716089466,1.16094366,3394.0,3392.4,0.55]
[1718716089665,1.16094366,3394.0,3392.4,0.60893874]
[1718716089666,1.77038029,3394.0,3392.4,0.60893874]
[1718716089870,1.77038029,3394.0,3392.5,0.75211382]
[1718716090068,0.60943663,3393.9,3392.6,0.60893874]
[1718716090306,1.16094366,3394.0,3392.6,0.60893874]
[1718716090307,1.77038029,3394.0,3392.6,0.60893874]
[1718716090531,1.0,3394.0,3392.6,0.60893874]
[1718716090672,1.0,3394.0,3392.7,2.70510526]
[1718716090874,1.0,3394.0,3392.8,3.55]
[1718716091093,1.0,3394.0,3392.9,0.05893301]
[1718716091299,1.0,3394.0,3393.0,0.55]
[1718716091567,1.0,3394.0,3393.1,0.05892518]
[1718716091816,1.0,3394.0,3393.2,0.55]
[1718716091994,1.0,3394.0,3393.0,0.55]
[1718716092237,1.0,3394.0,3393.0,1.82204158]
[1718716092823,1.60943663,3394.0,3392.8,3.0]
[1718716093116,0.60943663,3393.9,3392.7,2.2584]
[1718716093404,1.60943663,3394.0,3392.7,2.2584]
[1718716093618,1.60943663,3394.0,3392.8,0.28477998]
[1718716093773,1.60943663,3394.0,3392.8,3.22584]
[1718716093976,1.60943663,3394.0,3392.9,0.55]
[1718716094478,4.03023663,3394.0,3392.3,7.43]
[1718716094667,0.60943663,3393.4,3392.0,2.2584]
[1718716094904,0.60943663,3393.3,3392.0,2.2584]
[1718716095380,0.60943663,3392.9,3391.6,7.43]
[1718716095592,0.91415495,3393.0,3391.7,0.80196013]
[1718716095593,0.60943663,3392.8,3391.7,0.80196013]
[1718716096033,0.60943663,3392.9,3391.7,0.80196013]
[1718716096185,0.60943663,3393.0,3391.8,0.82319601]
[1718716096383,0.60943663,3393.0,3391.9,0.05895124]
[1718716096705,0.60943663,3393.2,3391.8,0.82319601]
[1718716096910,0.60943663,3393.2,3391.9,1.3753196]
[1718716097213,0.60943663,3392.9,3391.9,0.55]
[1718716097415,0.60943663,3393.0,3391.8,0.55]
[1718716097619,0.60943663,3393.0,3391.9,1.098]
[1718716097795,0.60943663,3393.0,3391.6,7.43]
[1718716097796,0.60943663,3392.8,3391.6,7.43]
[1718716098006,0.60943663,3392.6,3391.6,7.43]
[1718716098226,0.60943663,3392.6,3391.2,7.43]
[1718716098429,0.60943663,3392.6,3391.3,5.31396341]
[1718716098662,0.60943663,3392.6,3391.3,5.255]
[1718716098952,0.91415495,3392.7,3391.3,5.255]
[1718716098953,0.60943663,3392.5,3391.3,5.255]
[1718716099333,0.60943663,3392.5,3391.4,0.55]